Cogmind - Beta 12 @@@ ROGUE MODE // 2023.03.31 @ 19:23:41 Player: kasaphescent Result: Destroyed by Y-72 Warden with Railgun Performance ------------- Evolutions (7) 3500 Regions Visited (21) 4200 Robots Destroyed (172) 860 Value Destroyed (8482) 8482 Prototype IDs (17) 340 Alien Tech Used (0) 0 Bonus (2489) 2489 TOTAL SCORE: 19871 Bonus ------- High Alert Combat Kills 492 Follower Combat Kills 751 MAIN.C Attacked Warlord 500 Warlord Defense Kills 480 Met R17 at Cetus 500 Friendly Fire -234 Cogmind --------- Core Integrity 0/1300 Matter 234/300 Energy 100/100 System Corruption 15% Temperature Cool (0) Movement Core (50) Location -3/Research Parts ------- > --- POWER (2) -------- (None) > --- PROPULSION (6) --- Advanced Medium Treads > --- UTILITY (9) ------ (None) > --- WEAPON (4) ------- (None) > --- INVENTORY (5) ---- Micro Antimatter Reactor Compact Particle Reactor High-powered Tractor Beam Molecular Deconstructor Peak State ------------ > --- POWER ------------ Compact Particle Reactor Compact Particle Reactor > --- PROPULSION ------- Armored Leg Myomer Leg Myomer Leg Myomer Leg Myomer Leg Myomer Leg > --- UTILITY ---------- Advanced Heat Sink Advanced Heat Sink Large Storage Unit Advanced Energy Well Experimental Matter Compressor Enhanced Optical Array Improved Kinecellerator Improved Light Armor Plating Centrium Medium Armor Plating > --- WEAPON ----------- Dispersion Rifle Railgun Railgun Advanced KE Penetrator > --- INVENTORY -------- Compact Particle Reactor Flexi-carbon Leg Armored Leg Myomer Leg Myomer Leg Power Amplifier Matter Compressor EM Disruption Field High-powered Tractor Beam Vortex Shotgun Vortex Shotgun Mass Driver Heavy Rocket Launcher Molecular Deconstructor [Rating: 147] Favorites ----------- Power Quantum Reactor Engine Heavy Deuterium Engine Reactor Quantum Reactor Propulsion Carbon-fiber Leg Treads Light Treads Leg Carbon-fiber Leg Wheel Wheel Utility Large Storage Unit Device Advanced Heat Sink Storage Large Storage Unit Processor Advanced Targeting Computer Hackware Experimental Hacking Suite Protection Centrium Medium Armor Plating Weapon KE Penetrator Energy Gun Heavy Gatling Laser Ballistic Gun KE Penetrator Ballistic Cannon Advanced Assault Cannon Launcher Heavy Rocket Launcher Special Weapon Molecular Deconstructor Impact Weapon Heavy Flail Build | -11 -10 -9 -9 -8 -7 -7 -7 -7 -6 -6 -6 -6 -6 -6 -5 -5 -5 -5 -4 -4 -3 ------- Run | Jun Mat Mat Min Mat Fac Low Low Zio Pro Fac Ext Cet Arc Hub Fac Upp Upp War Pro Fac Res Slots Evolved 14 | . . 2 . 2 2 . . . . 2 . . . . 2 . . . . 2 2 Power 1 | . . . . . . . . . . . . . . . 1 . . . . . . Propulsion 4 | . . 2 . . . . . . . 1 . . . . 1 . . . . . . Utility 7 | . . . . 1 2 . . . . 1 . . . . . . . . . 2 1 Weapon 2 | . . . . 1 . . . . . . . . . . . . . . . . 1 Parts Attached 218 | 7 3 3 . 4 11 11 11 6 9 8 19 26 6 7 4 4 2 7 2 8 60 Power 11 | 1 . . . . 1 . . . 1 . 1 2 . . 1 . . 1 . . 3 Engine 5 | 1 . . . . 1 . . . 1 . 1 1 . . . . . . . . . Core . | . . . . . . . . . . . . . . . . . . . . . . Reactor 6 | . . . . . . . . . . . . 1 . . 1 . . 1 . . 3 Propulsion 63 | 2 . 2 . 1 . 1 3 1 4 2 11 6 1 5 1 . . 4 . 1 18 Treads 2 | . . . . . . . . . 1 . . . . . . . . . . . 1 Leg 59 | 2 . 2 . 1 . 1 3 1 3 2 11 6 1 5 1 . . 4 . 1 15 Wheel 2 | . . . . . . . . . . . . . . . . . . . . . 2 Hover . | . . . . . . . . . . . . . . . . . . . . . . Flight . | . . . . . . . . . . . . . . . . . . . . . . Utility 75 | 2 1 1 . 1 6 4 4 5 1 4 5 7 2 1 2 3 2 1 2 7 14 Device 35 | 1 . . . . 2 3 2 . . 1 1 3 1 . 2 1 2 1 1 5 9 Storage 7 | 1 1 1 . . . . . . . . . . . . . . . . 1 . 3 Processor 10 | . . . . 1 2 . . 4 . 1 . . . . . 1 . . . . 1 Hackware 1 | . . . . . . . . 1 . . . . . . . . . . . . . Protection 22 | . . . . . 2 1 2 . 1 2 4 4 1 1 . 1 . . . 2 1 Artifact . | . . . . . . . . . . . . . . . . . . . . . . Weapon 69 | 2 2 . . 2 4 6 4 . 3 2 2 11 3 1 . 1 . 1 . . 25 Energy Gun 16 | 1 . . . . . . . . . . . 3 1 . . . . . . . 11 Energy Cannon . | . . . . . . . . . . . . . . . . . . . . . . Ballistic Gun 36 | 1 2 . . 1 3 4 3 . 3 1 1 2 2 1 . 1 . 1 . . 10 Ballistic Cannon 6 | . . . . . . . . . . . 1 3 . . . . . . . . 2 Launcher 6 | . . . . . . . 1 . . 1 . 3 . . . . . . . . 1 Special Weapon 1 | . . . . . . . . . . . . . . . . . . . . . 1 Impact Weapon 4 | . . . . 1 1 2 . . . . . . . . . . . . . . . Slashing Weapon . | . . . . . . . . . . . . . . . . . . . . . . Piercing Weapon . | . . . . . . . . . . . . . . . . . . . . . . Special Melee Weapon . | . . . . . . . . . . . . . . . . . . . . . . Unidentified Prototypes 17 | . . . . . 1 . 1 4 . . 1 3 . . . . . . . . 7 Corrupted Parts 1 | . . . . . . . . . 1 . . . . . . . . . . . . System Corruption 4 | . . . . . . . . . 4 . . . . . . . . . . . . Parts Lost 63 | . . . . . . . 3 . 5 3 1 11 2 2 . . . . . . 36 Power 3 | . . . . . . . . . . . . 1 . . . . . . . . 2 Propulsion 21 | . . . . . . . . . 3 1 . 4 1 1 . . . . . . 11 Utility 19 | . . . . . . . 2 . . 2 1 4 . . . . . . . . 10 Weapon 20 | . . . . . . . 1 . 2 . . 2 1 1 . . . . . . 13 Highest Loss Streak 17 | . . . . . . . 3 . 5 2 1 5 1 1 . . . . . . 17 To Critical Strikes 3 | . . . . . . . . . . . . 2 1 . . . . . . . . Average Slot Usage (%) 98 | . 100 100 100 99 99 100 99 99 97 99 98 97 99 100 100 99 100 99 100 100 90 Engine 3 | . 14 11 11 9 6 7 7 7 6 6 6 4 . . . . . . . . . Reactor 4 | . . . . . . . . . . . . 1 6 6 11 11 11 10 11 10 8 Leg 31 | . 28 44 44 36 30 30 30 30 23 25 33 31 33 33 35 35 35 35 35 31 25 Device 8 | . 14 11 11 9 7 6 7 3 . . 4 8 6 6 9 11 11 11 11 15 16 Storage 6 | . 14 11 11 9 7 7 7 7 7 6 6 6 6 6 5 5 5 5 5 5 6 Processor 11 | . . . . 8 15 15 15 14 15 12 13 13 13 13 11 11 11 11 11 10 7 Protection 7 | . . . . . 6 7 6 7 6 13 13 9 13 13 6 4 5 5 5 10 6 Ballistic Gun 18 | . 26 22 22 26 22 22 22 23 23 19 15 12 15 20 17 17 17 17 17 15 11 Naked Turns 13 | . . . . . . . . . . . . . . . . . . . . . 13 Heaviest Build 111 | 12 20 30 30 33 45 54 54 47 46 53 62 72 72 71 90 95 95 99 96 108 111 Greatest Support 141 | 20 20 40 40 40 40 40 50 55 55 78 81 82 82 78 93 93 93 108 108 108 141 Greatest Overweight (x) 3 | . . . . . 1 1 1 . 1 1 . 1 . 1 . 1 1 1 . . 3 Average Overweight (x) . | . . . . . . 1 . . . . . . . . . . 1 . . . . Largest Inventory Capacity 15 | 8 10 15 15 15 15 15 15 15 15 15 15 15 15 15 15 15 15 15 15 15 15 Average Capacity 14 | 6 9 14 15 15 15 15 15 15 15 15 15 15 15 15 15 15 15 15 15 15 14 Most Carried 15 | 6 10 9 9 15 15 15 15 14 14 15 15 15 15 15 15 15 15 15 15 15 15 Average Carried 13 | 4 8 8 8 11 14 14 13 12 12 11 14 13 14 14 14 14 14 14 15 14 13 Final Capacity 15 | 8 10 15 15 15 15 15 15 15 15 15 15 15 15 15 15 15 15 15 15 15 5 Final Carried 15 | 6 10 8 9 15 15 15 11 14 12 13 15 15 15 15 15 14 14 15 15 15 5 Class Distribution -------------------- 60% | Scavenger-Tank 12% | Scavenger-Skirmisher 10% | Scavenger-Gunner 4% | Derelict-Gunner 4% | Mutant Dominant Class ---------------- Mutant | -10/Materials Mutant | -9/Materials Mutant | -9/Mines Skirmisher | -8/Materials Scavenger-Skirmisher | -7/Factory Scavenger-Skirmisher | -7/Lower Caves Scavenger-Skirmisher | -7/Lower Caves Scavenger-Gunner | -7/Zion Derelict-Gunner | -6/Proximity Caves Scavenger-Tank | -6/Factory Scavenger-Gunner | -6/Extension Scavenger-Tank | -6/Cetus Scavenger-Tank | -6/Archives Scavenger-Tank | -6/Hub_04(d) Scavenger-Tank | -5/Factory Scavenger-Tank | -5/Upper Caves Scavenger-Tank | -5/Upper Caves Scavenger-Tank | -5/Warlord Scavenger-Tank | -4/Proximity Caves Scavenger-Tank | -4/Factory Scavenger-Tank | -3/Research Resources | -11 -10 -9 -9 -8 -7 -7 -7 -7 -6 -6 -6 -6 -6 -6 -5 -5 -5 -5 -4 -4 -3 ----------- Run | Jun Mat Mat Min Mat Fac Low Low Zio Pro Fac Ext Cet Arc Hub Fac Upp Upp War Pro Fac Res Matter Collected 6716 | 282 84 . . 75 185 122 357 12 261 203 515 793 204 466 80 353 213 397 261 216 1637 Remotely 121 | . . . . . . . . . . . . . . . . . . . . 121 . Salvage Created 7938 | 28 92 43 . 75 189 54 545 . 183 347 513 853 287 807 110 630 264 230 222 370 2096 Parts 367 | 2 7 3 . 9 11 5 18 . 8 13 26 31 19 40 4 26 12 4 8 22 99 Haulers Intercepted 1 | . . . . . 1 . . . . . . . . . . . . . . . . Recyclers Shooed 1 | . . . . . . . . . . 1 . . . . . . . . . . . Parts Field Recycled 43 | . . . . . 18 3 5 . . . . 17 . . . . . . . . . Retrieved Matter 408 | . . . . . 206 38 51 . . . . 113 . . . . . . . . . Parts Self-Destructed 82 | . . . . . . 2 22 . 10 . . . . . . 25 14 . 9 . . Prevented 5 | . . . . . . . 3 . 2 . . . . . . . . . . . . Kills | -11 -10 -9 -9 -8 -7 -7 -7 -7 -6 -6 -6 -6 -6 -6 -5 -5 -5 -5 -4 -4 -3 ------- Run | Jun Mat Mat Min Mat Fac Low Low Zio Pro Fac Ext Cet Arc Hub Fac Upp Upp War Pro Fac Res Combat Hostiles Destroyed 152 | . 2 3 . 1 2 1 12 . 3 8 11 26 4 14 1 12 8 4 5 6 29 Guns 122 | . 2 3 . 1 2 1 9 . 3 6 10 5 4 14 1 12 8 4 5 6 26 Cannons 9 | . . . . . . . . . . . 1 6 . . . . . . . . 2 AOE 21 | . . . . . . . 3 . . 2 . 15 . . . . . . . . 1 Classes Destroyed 13 | 1 2 1 . 1 1 1 1 . . 1 1 1 . . 1 . . . . . 1 Worker 5 | . . . . . . . . . . . . . . . 1 . . . . 1 3 Builder 3 | . . . . . . . . . . . . . . . . . . . . . 3 Tunneler 1 | 1 . . . . . . . . . . . . . . . . . . . . . Hauler 1 | . . . . . 1 . . . . . . . . . . . . . . . . Recycler 4 | . . . . . . . . . . 1 . . . . . . . . . 1 2 Watcher 6 | . 1 . . 1 . . . . . . . 2 . 1 . . . . . . 1 Swarmer 42 | . . 3 . . . . 1 . . 5 3 3 . 3 . 4 7 . 3 5 5 Grunt 60 | . 2 . . . . . 9 . 1 3 6 12 . 6 . 5 . 2 2 . 12 Brawler 4 | . . . . . . . . . . . . 2 . . . . . 1 . . 1 Duelist 2 | . . . . . . . 1 . 1 . . . . . . . . . . . . Sentry 20 | . . . . 1 2 . 1 . 1 . 1 . 4 4 1 1 1 . . 1 2 Hunter 3 | . . . . . . 1 . . . . . . . 1 . . . . . . 1 Programmer 13 | . . . . . . . . . . . 1 1 . . . 2 . 1 . . 8 Cetus Guard 8 | . . . . . . . . . . . . 8 . . . . . . . . . Best Kill Streak 11 | 1 1 2 . 1 1 1 4 . 2 5 3 11 1 4 1 4 4 2 3 7 7 Combat Bots Only 11 | . 1 2 . 1 1 1 4 . 2 5 3 11 1 4 1 4 4 2 3 5 5 Max Kills in Single Turn 4 | 1 1 1 . 1 1 1 3 . 1 1 2 2 1 2 1 2 1 1 1 2 4 Gunslinging 1 | . . . . . . . . . . . 1 . . 1 . . . . . 1 1 Exploded 3 | . . . . . . . 3 . . 1 . 2 . . . . . . . . 1 Melee . | . . . . . . . . . . . . . . . . . . . . . . Uniques/NPCs Destroyed . | . . . . . . . . . . . . . . . . . . . . . . Combat | -11 -10 -9 -9 -8 -7 -7 -7 -7 -6 -6 -6 -6 -6 -6 -5 -5 -5 -5 -4 -4 -3 -------- Run | Jun Mat Mat Min Mat Fac Low Low Zio Pro Fac Ext Cet Arc Hub Fac Upp Upp War Pro Fac Res Damage Taken 14759 | . 45 184 . 15 190 60 703 . 594 445 617 2725 465 822 35 349 143 323 228 162 6654 Core 2102 | . . 42 . 15 16 . 59 . 70 32 73 219 21 58 . 48 23 104 6 6 1310 Absorbed by Shields 2008 | . . . . . . . . . . . . . . . 13 323 149 179 236 177 931 Redirected to Shielding 47 | . . . . . . . . . . . . . . . . . . . . . 47 Regen/Repaired (Parts) 278 | . . . . . . . . . . . . . . . . . . 278 . . . Core Remaining (%) 87 | 100 100 . 89 97 . . . . 79 . . . . 52 . . . . 81 99 . Volleys Fired 405 | 4 9 13 . 2 9 2 24 . 13 12 36 59 17 33 3 24 11 21 17 12 84 Largest 4 | 2 2 2 . 3 3 3 3 . 3 3 3 3 3 3 3 3 3 3 3 3 4 Hottest 286 | 60 46 46 . 69 69 70 75 . 89 89 109 143 144 101 99 99 99 101 101 101 286 Shots Fired 1133 | 8 18 26 . 6 24 6 68 . 40 32 79 146 47 99 9 73 33 63 51 36 269 Gun 1036 | 8 18 26 . 6 24 6 66 . 40 30 56 93 44 99 9 73 33 63 51 36 255 Cannon 78 | . . . . . . . . . . . 23 38 3 . . . . . . . 14 Launcher 19 | . . . . . . . 2 . . 2 . 15 . . . . . . . . . Special . | . . . . . . . . . . . . . . . . . . . . . . Kinetic 975 | 4 18 26 . 6 24 6 66 . 40 30 79 123 37 99 9 73 33 63 51 36 152 Thermal 118 | 4 . . . . . . . . . . . 8 10 . . . . . . . 96 Explosive 19 | . . . . . . . 2 . . 2 . 15 . . . . . . . . . Electromagnetic . | . . . . . . . . . . . . . . . . . . . . . . Entropic 21 | . . . . . . . . . . . . . . . . . . . . . 21 Robot Hit Streak 23 | 5 4 3 . 5 15 19 22 . 12 5 9 23 12 22 6 12 12 15 7 11 16 Robot Miss Streak 13 | 1 2 3 . 2 1 1 2 . 3 3 5 5 2 3 1 3 3 2 13 4 6 Penetration Max 1 | . . . . . . . 1 . . . 1 1 . 1 . 1 1 1 . 1 1 Secondary Targets 20 | . . . . . . . . . . 3 2 . . 3 . 1 . 2 . 2 7 Max Gunslinging Chain 2 | . . . . . . . . . . 1 1 . . 1 . 1 . 1 . 2 1 Shots Hit Robots 751 | 6 12 13 . 5 21 5 47 . 29 18 41 110 38 69 7 48 18 45 20 18 181 Core Hits 382 | 2 3 3 . 4 9 3 25 . 7 15 20 79 14 31 4 23 10 18 9 11 92 Critical Kills 17 | . . . . . 1 . . . . 1 1 1 1 4 . 1 . 2 . 1 4 Critical Parts Destroyed 12 | . . . . . . . 1 . 1 . . 2 . 2 . 2 . . . 2 2 Critical Strikes 34 | . . . . . 1 . 1 . 1 1 1 5 2 6 . 3 . 3 . 3 7 Burn 1 | . . . . . . . . . . . . . . . . . . . . . 1 Destroy 31 | . . . . . 1 . 1 . 1 1 1 4 2 6 . 3 . 3 . 3 5 Blast 1 | . . . . . . . . . . . . 1 . . . . . . . . . Detonate 1 | . . . . . . . . . . . . . . . . . . . . . 1 Melee Attacks 6 | . . . . 2 1 3 . . . . . . . . . . . . . . . Impact 6 | . . . . 2 1 3 . . . . . . . . . . . . . . . Slashing . | . . . . . . . . . . . . . . . . . . . . . . Piercing . | . . . . . . . . . . . . . . . . . . . . . . Sneak Attacks . | . . . . . . . . . . . . . . . . . . . . . . Combat Hostiles . | . . . . . . . . . . . . . . . . . . . . . . Follow-up Attacks . | . . . . . . . . . . . . . . . . . . . . . . Damage Inflicted 22452 | 82 186 189 . 72 334 63 1206 . 577 589 1106 4810 906 1743 209 1290 452 1361 501 631 6145 Guns 18010 | 82 186 189 . 72 334 63 854 . 577 328 874 1780 821 1730 162 1290 452 1361 501 631 5723 Cannons 1349 | . . . . . . . . . . . 232 762 85 . . . . . . . 270 Explosions 3028 | . . . . . . . 352 . . 261 . 2268 . . . . . . . . 147 Melee . | . . . . . . . . . . . . . . . . . . . . . . Ramming 65 | . . . . . . . . . . . . . . 13 47 . . . . . 5 Kinetic 16074 | 51 186 189 . 72 334 63 854 . 577 328 1106 2368 690 1730 162 1290 452 1361 501 631 3129 Thermal 2462 | 31 . . . . . . . . . . . 174 216 . . . . . . . 2041 Explosive 2881 | . . . . . . . 352 . . 261 . 2268 . . . . . . . . . Electromagnetic . | . . . . . . . . . . . . . . . . . . . . . . Impact . | . . . . . . . . . . . . . . . . . . . . . . Slashing . | . . . . . . . . . . . . . . . . . . . . . . Piercing . | . . . . . . . . . . . . . . . . . . . . . . Entropic 970 | . . . . . . . . . . . . . . . . . . . . . 970 Highest Corruption 15 | . . . . . . . . . 4 . . . . 3 . 1 1 1 . . 15 Average Corruption 3 | . . . . . . . . . 4 . . . . 2 . 1 1 1 . . 6 Corruption Purged . | . . . . . . . . . . . . . . . . . . . . . . Corruption Blocked 8 | . . . . . . . . . . . . . . . . . . . . . 8 Effects 71 | . . . . . . . . . 16 . . . . 10 . 7 2 . . . 36 Message Errors 22 | . . . . . . . . . 7 . . . . 2 . 3 1 . . . 9 Matter Fused 12 | . . . . . . . . . 2 . . . . 2 . 2 . . . . 6 Heat Flow Errors 7 | . . . . . . . . . 2 . . . . 1 . . 1 . . . 3 Energy Discharges 8 | . . . . . . . . . 2 . . . . 1 . 1 . . . . 4 Parts Rejected 2 | . . . . . . . . . . . . . . 1 . . . . . . 1 Parts Fused 2 | . . . . . . . . . 1 . . . . . . . . . . . 1 Data Loss (minor) 5 | . . . . . . . . . 1 . . . . 2 . . . . . . 2 Data Loss (major) 2 | . . . . . . . . . . . . . . 1 . . . . . . 1 Misfires 2 | . . . . . . . . . 1 . . . . . . 1 . . . . . Alerts 2 | . . . . . . . . . . . . . . . . . . . . . 2 Weapon Failures 7 | . . . . . . . . . . . . . . . . . . . . . 7 Overload Shots . | . . . . . . . . . . . . . . . . . . . . . . Overflow Damage 42 | . . . . . . . . . . . 8 8 . . . . . . . . 26 Projectiles 15 | . . . . . . . . . . . 8 . . . . . . . . . 7 Explosions 27 | . . . . . . . . . . . . 8 . . . . . . . . 19 Melee . | . . . . . . . . . . . . . . . . . . . . . . Knockbacks 6 | . . . . . . . . . . . 4 . . . . . . . . . 2 Impact . | . . . . . . . . . . . . . . . . . . . . . . Kinetic 6 | . . . . . . . . . . . 4 . . . . . . . . . 2 Secondary . | . . . . . . . . . . . . . . . . . . . . . . Self-Inflicted Damage 59 | . . . . . . . . . . . . . . . . . . . . . 59 Shots 1 | . . . . . . . . . . . . . . . . . . . . . 1 Rammed . | . . . . . . . . . . . . . . . . . . . . . . Targets Rammed 5 | . . . . . . . . . . . . . . 1 2 . . . . . 2 Kicked 5 | . . . . . . . . . . . . . . 1 2 . . . . . 2 Crushed . | . . . . . . . . . . . . . . . . . . . . . . Highest Temperature 472 | . 1 . . . 9 24 150 422 280 84 427 426 108 74 2 9 266 234 2 1 472 Average Temperature 89 | . 1 . . . 4 13 47 203 48 27 111 93 39 17 2 4 150 128 2 1 104 Received Heat Transfer 2756 | . 24 . . 9 60 . 249 . 171 87 234 523 108 300 6 73 4 16 28 24 840 Effects 11 | . . . . . . . . 3 . . 1 4 . . . . . . . . 3 Shutdowns 2 | . . . . . . . . . . . . 1 . . . . . . . . 1 Energy Bleed 3 | . . . . . . . . . . . 1 . . . . . . . . . 2 Interference 5 | . . . . . . . . 2 . . . 3 . . . . . . . . . Damage (minor) 1 | . . . . . . . . 1 . . . . . . . . . . . . . Siege Activations . | . . . . . . . . . . . . . . . . . . . . . . Robots Corrupted . | . . . . . . . . . . . . . . . . . . . . . . Combat Hostiles . | . . . . . . . . . . . . . . . . . . . . . . Parts Fried . | . . . . . . . . . . . . . . . . . . . . . . Impact Corruptions . | . . . . . . . . . . . . . . . . . . . . . . Robots Melted . | . . . . . . . . . . . . . . . . . . . . . . Combat Hostiles . | . . . . . . . . . . . . . . . . . . . . . . Parts Melted 3 | . . . . . . . . . . . . . . . . . . . . . 3 Heat Transferred 3914 | 75 . . . . . . . . . . . 222 333 . . . . . . . 3284 Parts Sabotaged . | . . . . . . . . . . . . . . . . . . . . . . Parts Stolen . | . . . . . . . . . . . . . . . . . . . . . . Parts Stripped . | . . . . . . . . . . . . . . . . . . . . . . Power Chain Reactions . | . . . . . . . . . . . . . . . . . . . . . . Missiles Intercepted . | . . . . . . . . . . . . . . . . . . . . . . Alert | -11 -10 -9 -9 -8 -7 -7 -7 -7 -6 -6 -6 -6 -6 -6 -5 -5 -5 -5 -4 -4 -3 ------- Run | Jun Mat Mat Min Mat Fac Low Low Zio Pro Fac Ext Cet Arc Hub Fac Upp Upp War Pro Fac Res Peak Influence 848 | 5 125 123 47 75 148 . . . . 423 409 341 215 274 155 . . . . 848 610 Initial 759 | . 3 52 47 18 33 . . . . 309 179 109 76 74 74 . . . . 759 339 Average 252 | 1 40 67 47 32 71 . . . . 338 248 147 159 157 117 . . . . 787 417 Maximum Alert Level 3 | . . . . . . . . . . 2 2 1 1 1 . . . . . 3 2 Low Security (%) 47 | 100 100 100 100 100 100 . . . . . 37 62 50 76 100 . . . . . . Level 1 35 | . . . . . . . . . . 93 57 37 49 23 . . . . . . 49 Level 2 12 | . . . . . . . . . . 6 4 . . . . . . . . 20 50 Level 3 5 | . . . . . . . . . . . . . . . . . . . . 79 . Level 4 . | . . . . . . . . . . . . . . . . . . . . . . Level 5 . | . . . . . . . . . . . . . . . . . . . . . . High Security . | . . . . . . . . . . . . . . . . . . . . . . Max Security . | . . . . . . . . . . . . . . . . . . . . . . Squads Dispatched 22 | . 1 2 . . 1 . 1 . . . 3 1 . 5 . . . . . . 8 Investigation 4 | . . 1 . . . . . . . . 1 1 . . . . . . . . 1 Extermination 4 | . . . . . . . . . . . . . . . . . . . . . 4 Reinforcement 11 | . 1 1 . . 1 . . . . . 2 . . 4 . . . . . . 2 Assault 2 | . . . . . . . 1 . . . . . . . . . . . . . 1 Garrison 1 | . . . . . . . . . . . . . . 1 . . . . . . . Intercept . | . . . . . . . . . . . . . . . . . . . . . . Searches Triggered 1 | . . . . . . . . . . . . . . . . . . . . 1 . Construction Impeded 2 | . . . . . . . . . . . 1 . . . . . . . . . 1 Haulers Reinforced 1 | . . . . . 1 . . . . . . . . . . . . . . . . Active Scanning Responses . | . . . . . . . . . . . . . . . . . . . . . . Cargo Convoy Interrupts . | . . . . . . . . . . . . . . . . . . . . . . Stealth | -11 -10 -9 -9 -8 -7 -7 -7 -7 -6 -6 -6 -6 -6 -6 -5 -5 -5 -5 -4 -4 -3 --------- Run | Jun Mat Mat Min Mat Fac Low Low Zio Pro Fac Ext Cet Arc Hub Fac Upp Upp War Pro Fac Res Distress Signals 10 | . . . . . . . . . . . 4 2 . 2 . . . . 1 . 1 Communications Jammed . | . . . . . . . . . . . . . . . . . . . . . . Distress Signals . | . . . . . . . . . . . . . . . . . . . . . . Times Spotted 294 | . 5 4 . 1 3 1 21 . 6 9 29 29 6 32 2 14 13 44 11 7 57 Peak Tracking Total 13 | . 3 4 . 1 1 1 8 . 4 5 4 7 1 6 1 5 4 12 4 3 13 Tactical Retreats 21 | . . . . . . . 3 . 1 . 5 . . . . 4 3 1 1 . 3 Traps | -11 -10 -9 -9 -8 -7 -7 -7 -7 -6 -6 -6 -6 -6 -6 -5 -5 -5 -5 -4 -4 -3 ------- Run | Jun Mat Mat Min Mat Fac Low Low Zio Pro Fac Ext Cet Arc Hub Fac Upp Upp War Pro Fac Res Traps Triggered 5 | . . 1 . . . . . . . . 1 . . 2 . . . . . . 1 Indirectly . | . . . . . . . . . . . . . . . . . . . . . . Trap Hack Attempts . | . . . . . . . . . . . . . . . . . . . . . . Triggered . | . . . . . . . . . . . . . . . . . . . . . . Disarmed . | . . . . . . . . . . . . . . . . . . . . . . Reprogrammed . | . . . . . . . . . . . . . . . . . . . . . . Reused 1 | . . . . . . . 1 . . . . . . . . . . . . . . Traps Extracted . | . . . . . . . . . . . . . . . . . . . . . . Installed 1 | . . . . . . . 1 . . . . . . . . . . . . . . Triggered 18 | . . . . . . . 1 . . . . . . . . 3 2 12 . . . Most Traps Carried 1 | . . . . . . . 1 . . . . . . . . . . . . . . Machines | -11 -10 -9 -9 -8 -7 -7 -7 -7 -6 -6 -6 -6 -6 -6 -5 -5 -5 -5 -4 -4 -3 ---------- Run | Jun Mat Mat Min Mat Fac Low Low Zio Pro Fac Ext Cet Arc Hub Fac Upp Upp War Pro Fac Res Machines Disabled 19 | . . . . . . 1 . . . 2 . 1 3 3 . . . 1 . 3 5 Max in Single Turn 2 | . . . . . . 1 . . . 1 . 1 2 1 . . . 1 . 2 1 Garrison Access 2 | . . . . . . . . . . . . . . 1 . . . . . 1 . Machines Repaired . | . . . . . . . . . . . . . . . . . . . . . . Machines Sabotaged . | . . . . . . . . . . . . . . . . . . . . . . Overloaded Fab Kills . | . . . . . . . . . . . . . . . . . . . . . . Hacking | -11 -10 -9 -9 -8 -7 -7 -7 -7 -6 -6 -6 -6 -6 -6 -5 -5 -5 -5 -4 -4 -3 --------- Run | Jun Mat Mat Min Mat Fac Low Low Zio Pro Fac Ext Cet Arc Hub Fac Upp Upp War Pro Fac Res Machines Accessed 48 | . 3 1 . 4 3 . . . . 6 12 3 . 6 2 1 1 1 . 3 2 Terminals 37 | . 2 1 . 3 2 . . . . 3 11 3 . 5 2 . 1 . . 2 2 Fabricators 1 | . . . . . . . . . . 1 . . . . . . . . . . . Repair Stations . | . . . . . . . . . . . . . . . . . . . . . . Recycling Units 6 | . 1 . . 1 1 . . . . 2 1 . . . . . . . . . . Scanalyzers . | . . . . . . . . . . . . . . . . . . . . . . Garrison Access 2 | . . . . . . . . . . . . . . 1 . . . . . 1 . Total Hacks 114 | . 8 2 . 6 12 . . . . 12 29 10 . 14 4 1 1 1 . 7 7 Successful 56 | . 5 1 . 4 5 . . . . 9 13 2 . 8 1 1 1 1 . 1 4 Failed 58 | . 3 1 . 2 7 . . . . 3 16 8 . 6 3 . . . . 6 3 Catastrophic 14 | . . . . . 3 . . . . . 2 6 . 1 . . . . . 1 1 Database Lockouts . | . . . . . . . . . . . . . . . . . . . . . . Manual 41 | . 4 2 . 1 7 1 . . . 5 12 . . 2 2 . . . . 2 3 Terminals 93 | . 6 2 . 5 9 . . . . 5 26 10 . 13 4 . 1 . . 5 7 Fabricators 4 | . . . . . . . . . . 4 . . . . . . . . . . . Repair Stations . | . . . . . . . . . . . . . . . . . . . . . . Recycling Units 12 | . 2 . . 1 3 . . . . 3 3 . . . . . . . . . . Scanalyzers . | . . . . . . . . . . . . . . . . . . . . . . Garrison Access 3 | . . . . . . . . . . . . . . 1 . . . . . 2 . Terminal Hacks 31 | . 2 . . 3 2 . . . . 2 8 2 . 5 1 1 1 1 . . 3 Record 3 | . . . . . . . . . . . . 2 . . . . 1 . . . . Part Schematic 2 | . . . . . 2 . . . . . . . . . . . . . . . . Robot Analysis 1 | . . . . . . . . . . . 1 . . . . . . . . . . Open Door 6 | . . . . . . . . . . 1 3 . . . . 1 . 1 . . . Branch Access Points 1 | . . . . . . . . . . . . . . . 1 . . . . . . Emergency Access Points 4 | . . . . 1 . . . . . 1 . . . 1 . . . . . . 1 Alert Level 1 | . . . . 1 . . . . . . . . . . . . . . . . . Unreport Threat 4 | . . . . . . . . . . . 2 . . 2 . . . . . . . Locate Traps 4 | . 1 . . . . . . . . . 2 . . . . . . . . . 1 Maintenance Status 1 | . . . . 1 . . . . . . . . . . . . . . . . . Security Status 1 | . 1 . . . . . . . . . . . . . . . . . . . . Patrol Status 1 | . . . . . . . . . . . . . . 1 . . . . . . . Zone Layout 2 | . . . . . . . . . . . . . . 1 . . . . . . 1 Fabricator Hacks 2 | . . . . . . . . . . 2 . . . . . . . . . . . Network Status 1 | . . . . . . . . . . 1 . . . . . . . . . . . Build 1 | . . . . . . . . . . 1 . . . . . . . . . . . Repair Station Hacks . | . . . . . . . . . . . . . . . . . . . . . . Recycling Unit Hacks 6 | . 1 . . 1 1 . . . . 1 2 . . . . . . . . . . Report Inventory 2 | . . . . . . . . . . 1 1 . . . . . . . . . . Retrieve Components 4 | . 1 . . 1 1 . . . . . 1 . . . . . . . . . . Scanalyzer . | . . . . . . . . . . . . . . . . . . . . . . Garrison Access Hacks 2 | . . . . . . . . . . . . . . 1 . . . . . 1 . Seal Access 2 | . . . . . . . . . . . . . . 1 . . . . . 1 . Unauthorized Hacks 15 | . 2 1 . . 2 . . . . 4 3 . . 2 . . . . . . 1 Terminals 13 | . 2 1 . . 2 . . . . 2 3 . . 2 . . . . . . 1 Botnet 12 | . 2 1 . . 2 . . . . 2 3 . . 1 . . . . . . 1 Disrupt 1 | . . . . . . . . . . . . . . 1 . . . . . . . Fabricators 2 | . . . . . . . . . . 2 . . . . . . . . . . . Prioritize 1 | . . . . . . . . . . 1 . . . . . . . . . . . Fabnet 1 | . . . . . . . . . . 1 . . . . . . . . . . . Repair Stations . | . . . . . . . . . . . . . . . . . . . . . . Recycling Units . | . . . . . . . . . . . . . . . . . . . . . . Scanalyzers . | . . . . . . . . . . . . . . . . . . . . . . Garrison Access . | . . . . . . . . . . . . . . . . . . . . . . Data Cores Recovered . | . . . . . . . . . . . . . . . . . . . . . . Used . | . . . . . . . . . . . . . . . . . . . . . . Hacking Detections 38 | . 1 1 . 3 3 . . . . 5 11 3 . 4 2 . 1 . . 2 2 Full Trace Events 3 | . . . . . . . . . . . 1 1 . . . . . . . . 1 Feedback Events . | . . . . . . . . . . . . . . . . . . . . . . Feedback Blocked . | . . . . . . . . . . . . . . . . . . . . . . Robot Schematics Acquired . | . . . . . . . . . . . . . . . . . . . . . . Robots Built 2 | . . . . . . . . . . 2 . . . . . . . . . . . Authchips . | . . . . . . . . . . . . . . . . . . . . . . Time 152 | . . . . . . . . . . 152 . . . . . . . . . . . Total Robot Build Rating 10 | . . . . . . . . . . 10 . . . . . . . . . . . Part Schematics Acquired 2 | . . . . . 2 . . . . . . . . . . . . . . . . Parts Built . | . . . . . . . . . . . . . . . . . . . . . . Authchips . | . . . . . . . . . . . . . . . . . . . . . . Time . | . . . . . . . . . . . . . . . . . . . . . . Total Part Build Rating . | . . . . . . . . . . . . . . . . . . . . . . Parts Repaired . | . . . . . . . . . . . . . . . . . . . . . . Time . | . . . . . . . . . . . . . . . . . . . . . . Parts Recycled . | . . . . . . . . . . . . . . . . . . . . . . Recycled Matter . | . . . . . . . . . . . . . . . . . . . . . . Retrieved Matter . | . . . . . . . . . . . . . . . . . . . . . . Retrieved Components 15 | . 7 . . 1 1 . . . . . 6 . . . . . . . . . . Parts Scanalyzed . | . . . . . . . . . . . . . . . . . . . . . . Part Schematics Acquired . | . . . . . . . . . . . . . . . . . . . . . . Parts Damaged . | . . . . . . . . . . . . . . . . . . . . . . Bothacking | -11 -10 -9 -9 -8 -7 -7 -7 -7 -6 -6 -6 -6 -6 -6 -5 -5 -5 -5 -4 -4 -3 ------------ Run | Jun Mat Mat Min Mat Fac Low Low Zio Pro Fac Ext Cet Arc Hub Fac Upp Upp War Pro Fac Res Used RIF Installer . | . . . . . . . . . . . . . . . . . . . . . . Robots Hacked 3 | . . . . . . . . . . . . . . . . . . 3 . . . Non-combat . | . . . . . . . . . . . . . . . . . . . . . . Combat 3 | . . . . . . . . . . . . . . . . . . 3 . . . Robot Hacks Applied . | . . . . . . . . . . . . . . . . . . . . . . Relay Couplers Released . | . . . . . . . . . . . . . . . . . . . . . . Fabnet Peak Effective % 3 | . . . . . . . . . . . . . . . 3 3 3 3 1 1 . Autooverrided 3 | . . . . . . . . . . . . . . . . . . 3 . . . Robots Rewired 18 | . . . . . . . 2 . . . 16 . . . . . . . . . . Allies Hacked . | . . . . . . . . . . . . . . . . . . . . . . Hacks Repelled . | . . . . . . . . . . . . . . . . . . . . . . Allies | -11 -10 -9 -9 -8 -7 -7 -7 -7 -6 -6 -6 -6 -6 -6 -5 -5 -5 -5 -4 -4 -3 -------- Run | Jun Mat Mat Min Mat Fac Low Low Zio Pro Fac Ext Cet Arc Hub Fac Upp Upp War Pro Fac Res Total Allies 31 | . . . . . . . 2 4 . 2 20 . . . . . . 3 . . . Largest Group 7 | . . . . . . . 2 4 4 2 7 6 . . . . . 1 . . . Highest-Rated Group 219 | . . . . . . . 36 82 82 86 219 180 . . . . . 116 . . . Highest-Rated Ally 116 | . . . . . . . 20 28 28 43 39 39 . . . . . 116 . . . Total Orders . | . . . . . . . . . . . . . . . . . . . . . . Ally Attacks 131 | . . . . . . . 7 . 25 6 82 6 . . . . . 5 . . . Total Damage 2661 | . . . . . . . 107 . 253 129 1789 140 . . . . . 243 . . . Kills 27 | . . . . . . . 1 . 3 3 19 . . . . . . 1 . . . Allies Corrupted . | . . . . . . . . . . . . . . . . . . . . . . Allies Melted 1 | . . . . . . . . . . . . . . . . . . 1 . . . Intel | -11 -10 -9 -9 -8 -7 -7 -7 -7 -6 -6 -6 -6 -6 -6 -5 -5 -5 -5 -4 -4 -3 ------- Run | Jun Mat Mat Min Mat Fac Low Low Zio Pro Fac Ext Cet Arc Hub Fac Upp Upp War Pro Fac Res Robot Analysis Total 1 | . . . . . . . . . . . 1 . . . . . . . . . . Derelict Logs Recovered 10 | . . . . . . 2 2 2 . . . . . . . 1 1 . 2 . . Drone Launches . | . . . . . . . . . . . . . . . . . . . . . . Drone Recoveries . | . . . . . . . . . . . . . . . . . . . . . . Decoded 0b10 Intel 47 | . . . . . . . . . . 11 15 1 2 14 4 . . . . . . Traps 30 | . . . . . . . . . . 9 11 . . 7 3 . . . . . . Emergency Access 13 | . . . . . . . . . . 2 4 . . 6 1 . . . . . . Exits 4 | . . . . . . . . . . . . 1 2 1 . . . . . . . Exploration | -11 -10 -9 -9 -8 -7 -7 -7 -7 -6 -6 -6 -6 -6 -6 -5 -5 -5 -5 -4 -4 -3 ------------- Run | Jun Mat Mat Min Mat Fac Low Low Zio Pro Fac Ext Cet Arc Hub Fac Upp Upp War Pro Fac Res Turns Passed 13786 | 72 269 154 43 368 594 920 757 913 751 581 1114 865 256 825 185 1200 621 858 588 453 1399 Spaces Moved 8192 | 44 179 93 35 260 384 456 493 736 547 381 492 489 146 549 137 608 290 371 422 313 767 Core 100 | 12 . . . . . . . . . . . . . . . . . . . . 88 Treads . | . . . . . . . . . . . . . . . . . . . . . . Legs 8071 | 32 179 93 35 260 384 456 493 736 547 381 492 489 146 549 137 608 290 371 422 313 658 Wheels 21 | . . . . . . . . . . . . . . . . . . . . . 21 Hover . | . . . . . . . . . . . . . . . . . . . . . . Flight . | . . . . . . . . . . . . . . . . . . . . . . Fastest Speed 50 | 50 120 120 120 120 120 190 120 120 120 122 120 120 120 120 120 120 190 123 123 120 50 Average Speed 134 | 100 120 120 120 120 136 190 123 120 123 127 121 123 120 120 120 182 190 147 123 122 117 Slowest Speed 195 | 120 120 120 120 120 190 190 190 120 195 193 122 190 120 190 120 190 190 190 123 123 190 Overloaded Moves . | . . . . . . . . . . . . . . . . . . . . . . Propulsion Burnouts . | . . . . . . . . . . . . . . . . . . . . . . Robots Hopped . | . . . . . . . . . . . . . . . . . . . . . . Cave-ins Triggered . | . . . . . . . . . . . . . . . . . . . . . . Exploration Rate (%) 43 | 3 39 15 13 25 11 60 59 81 71 10 62 77 87 49 4 81 53 50 67 11 22 Regions Visited 21 Branch Regions 13 Pre-discovered Areas 2 | . . . . . . 1 1 . . . . . . . . . . . . . . Known Exits Taken 5 | . . . . . . 1 . . . . . . 1 1 1 . . . 1 . . Unknown Exits Taken 16 | 1 1 1 1 1 1 . 1 1 1 1 1 1 . . . 1 1 1 . 1 . Scrap Searched 15 | . . . . . . 2 2 1 1 . . . . . . 5 2 . 2 . . Spaces Dug 42 | . . . . 2 1 2 . . . . 4 30 . . . . . . . . 3 Terrain Destroyed 271 | . . . . 2 1 2 17 . . 8 16 125 5 9 . 10 5 5 20 6 40 Melee 5 | . . . . 2 1 2 . . . . . . . . . . . . . . . Projectile 120 | . . . . . . . . . . 1 16 10 5 9 . 10 5 5 20 6 33 AOE 146 | . . . . . . . 17 . . 7 . 115 . . . . . . . . 7 Terrain Rammed . | . . . . . . . . . . . . . . . . . . . . . . Walls Destroyed . | . . . . . . . . . . . . . . . . . . . . . . Machines Disabled . | . . . . . . . . . . . . . . . . . . . . . . Actions | -11 -10 -9 -9 -8 -7 -7 -7 -7 -6 -6 -6 -6 -6 -6 -5 -5 -5 -5 -4 -4 -3 --------- Run | Jun Mat Mat Min Mat Fac Low Low Zio Pro Fac Ext Cet Arc Hub Fac Upp Upp War Pro Fac Res Total 10149 | 60 221 109 36 308 434 502 588 766 591 450 953 635 197 644 153 645 336 640 452 356 1073 Wait 865 | . 2 . 1 31 19 23 41 14 20 43 158 43 18 45 1 4 30 227 11 16 118 Move 8171 | 43 178 92 34 259 383 455 492 735 546 380 491 488 145 548 136 607 289 370 421 312 767 Hop . | . . . . . . . . . . . . . . . . . . . . . . Pick Up 95 | 6 15 . 1 8 5 2 3 4 3 5 3 9 4 4 3 1 2 5 . 3 9 Fast Attach 64 | 7 1 . . 1 2 1 . 5 4 2 3 5 2 1 1 1 . 2 . . 26 Attach 52 | . . 2 . 1 2 . 3 . 5 4 1 10 1 2 2 2 1 . . 2 14 Detach 15 | . . . . . . . . 5 . 1 . 3 . . 1 2 . 1 . . 2 Swap 102 | . 2 1 . 2 7 10 8 1 . 2 15 11 3 4 1 1 1 5 2 6 20 Drop 128 | . 14 1 . 2 6 6 5 2 . 1 17 7 7 6 3 3 2 9 1 5 31 Fire 405 | 4 9 13 . 2 9 2 24 . 13 12 36 59 17 33 3 24 11 21 17 12 84 Melee 6 | . . . . 2 1 3 . . . . . . . . . . . . . . . Ram . | . . . . . . . . . . . . . . . . . . . . . . Kick 5 | . . . . . . . . . . . . . . 1 2 . . . . . 2 Crush . | . . . . . . . . . . . . . . . . . . . . . . Escape Stasis 2 | . . . . . . . . . . . 2 . . . . . . . . . . Rewire 238 | . . . . . . . 11 . . . 227 . . . . . . . . . . Trap 1 | . . . . . . . 1 . . . . . . . . . . . . . . Miscellaneous . | . . . . . . . . . . . . . . . . . . . . . . Route ------- -11/Junkyard -10/Materials -9/Materials -9/Mines -8/Materials -7/Factory -7/Lower Caves -7/Lower Caves (discovered 2 exits: *Fac / [*Zio]) -7/Zion -6/Proximity Caves -6/Factory (discovered 3 exits: Fac x2 / *Ext) -6/Extension (discovered 2 exits: *Fac / *Cet) -6/Cetus (discovered 3 exits: *Fac x2 / *Arc) -6/Archives (discovered 3 exits: *Fac / *Hub x2) -6/Hub_04(d) (discovered 3 exits: *Fac x3) -5/Factory (discovered 2 exits: *Upp x2) -5/Upper Caves -5/Upper Caves -5/Warlord -4/Proximity Caves -4/Factory (discovered 2 exits: *Res / Upp) -3/Research (discovered 1 exit: Arm) History --------- Turn | Location | Event 11 | -11/Junkyard | Discovered new exit (range 15) 73 | -11/Junkyard | Entered Materials 309 | -10/Materials | Build established: Mutant 334 | -10/Materials | Discovered new exit (range 6) 342 | -10/Materials | Entered another Materials area 342 | -9/Materials | Evolved 2 slots: Propulsion x2 422 | -9/Materials | Discovered new exit (range 6) 496 | -9/Materials | Entered Mines 520 | -9/Mines | Met a Derelict bent on vengeance 520 | -9/Mines | Discovered new exit (range 12) 521 | -9/Mines | Received a Rocket Launcher from a helpful Derelict 539 | -9/Mines | Entered Materials 539 | -8/Materials | Evolved 2 slots: Utility x1, Weapon x1 842 | -8/Materials | Build established: Skirmisher 863 | -8/Materials | Discovered new exit (range 13) 907 | -8/Materials | Entered Factory 907 | -7/Factory | Evolved 2 slots: Utility x2 1182 | -7/Factory | Build established: Scavenger-Skirmisher 1435 | -7/Factory | Discovered new exit (range 15) 1501 | -7/Factory | Entered Lower Caves 1530 | -7/Lower Caves | Identified exit to Lower Caves 2117 | -7/Lower Caves | Learned location of Extension (-6) 2342 | -7/Lower Caves | Acquired the password to a Derelict Tinkerer's latest research 2353 | -7/Lower Caves | Found Prototype Special Weapon 2421 | -7/Lower Caves | Entered another Lower Caves area 2424 | -7/Lower Caves | Discovered new exit (range 10) 2479 | -7/Lower Caves | Learned location of Zion (-7) 2572 | -7/Lower Caves | Encountered a Warlord checkpoint 2761 | -7/Lower Caves | Attracted the attention of an 0b10 checkpoint 2873 | -7/Lower Caves | Attracted the attention of an 0b10 outpost 2939 | -7/Lower Caves | Lost 3 parts (2u1w) 3172 | -7/Lower Caves | Discovered new exit (range 5) 3178 | -7/Lower Caves | Entered Zion 3270 | -7/Zion | Learned 8 Factory zone layouts 3294 | -7/Zion | Given A8's code to call for help 3323 | -7/Zion | Build established: Scavenger-Tank 3334 | -7/Zion | Gained Derelict followers 3421 | -7/Zion | Received a hallucinogenic algorithm 3620 | -7/Zion | Found Prototype Processor 3620 | -7/Zion | Identified Spectral Analyzer 3626 | -7/Zion | Found Prototype Processor 3626 | -7/Zion | Identified Exp. Signal Interpreter 3629 | -7/Zion | Found Prototype Hackware 3629 | -7/Zion | Identified Exp. Hacking Suite 3632 | -7/Zion | Found Prototype Processor 3632 | -7/Zion | Identified Exp. Target Analyzer 3916 | -7/Zion | Build established: Scavenger-Gunner 4005 | -7/Zion | Acquired unknown access codes intercepted by a Zionite 4051 | -7/Zion | Found CR-A16's Pointy Stick 4055 | -7/Zion | Discovered new exit (range 14) 4091 | -7/Zion | Entered Proximity Caves 4091 | -6/Proximity Caves | Accompanied by 4 allies 4096 | -6/Proximity Caves | Spotter reported a threat 4097 | -6/Proximity Caves | Spotter reported a threat 4149 | -6/Proximity Caves | Attracted the attention of an 0b10 checkpoint 4227 | -6/Proximity Caves | Lost 5 parts (3n2w) 4405 | -6/Proximity Caves | Spotted B-75 Beast 4521 | -6/Proximity Caves | Build established: Derelict-Gunner 4822 | -6/Proximity Caves | Discovered new exit (range 6) 4842 | -6/Proximity Caves | Entered Factory 4842 | -6/Factory | Evolved 2 slots: Propulsion x1, Utility x1 4843 | -6/Factory | Identified exit to Factory 5135 | -6/Factory | Build established: Scavenger-Tank 5174 | -6/Factory | Fabricated X-67 Chaingunner (x2) 5366 | -6/Factory | Discovered new exit (range 6) 5423 | -6/Factory | Entered Extension 5510 | -6/Extension | Rescued a captive Derelict 5685 | -6/Extension | Build established: Scavenger-Gunner 5911 | -6/Extension | Rescued a captive Derelict 5912 | -6/Extension | Rescued a captive Derelict 5957 | -6/Extension | Rescued a captive Derelict 6508 | -6/Extension | Discovered exit to Factory (range 10) 6510 | -6/Extension | Discovered new exit (range 6) 6537 | -6/Extension | Entered Cetus 6537 | -6/Cetus | Accompanied by 6 allies 6554 | -6/Cetus | Spotted Cetus Guard 6554 | -6/Cetus | Spotted Cetus Guard 6557 | -6/Cetus | Spotted Cetus Guard 6560 | -6/Cetus | Spotted Cetus Guard 6572 | -6/Cetus | Destroyed Cetus Guard 6575 | -6/Cetus | Destroyed Cetus Guard 6588 | -6/Cetus | Destroyed Cetus Guard 6610 | -6/Cetus | Destroyed Cetus Guard 6631 | -6/Cetus | Lost 5 parts (1p1n2u1w) 6706 | -6/Cetus | Discovered exit to Factory (range 15) 6887 | -6/Cetus | Discovered new exit (range 15) 6918 | -6/Cetus | Spotted Cetus Guard 6918 | -6/Cetus | Spotted Cetus Guard 6939 | -6/Cetus | Build established: Scavenger-Tank 6972 | -6/Cetus | Destroyed Cetus Guard 6973 | -6/Cetus | Spotted Cetus Guard 6977 | -6/Cetus | Spotted Cetus Guard 6996 | -6/Cetus | Cetus Manufacturing Module disabled 7013 | -6/Cetus | Lost 4 parts (1n2u1w) 7055 | -6/Cetus | Destroyed Cetus Guard 7079 | -6/Cetus | Destroyed Cetus Guard 7084 | -6/Cetus | Destroyed Cetus Guard 7105 | -6/Cetus | Destroyed 11 combat bots 7342 | -6/Cetus | Met Revision 17 7402 | -6/Cetus | Entered Archives 7518 | -6/Archives | Identified exit to Hub_04(d) 7543 | -6/Archives | Discovered exit to Factory (range 15) 7580 | -6/Archives | Unable to access archive contents 7658 | -6/Archives | Entered Hub_04(d) 7658 | -6/Hub_04(d) | Discovered exit to Factory (range 12) 8118 | -6/Hub_04(d) | Garrison activated, responded to threat 8323 | -6/Hub_04(d) | Discovered exit to Factory (range 15) 8466 | -6/Hub_04(d) | Spotted B-75 Beast 8483 | -6/Hub_04(d) | Entered Factory 8483 | -5/Factory | Evolved 2 slots: Power x1, Propulsion x1 8484 | -5/Factory | Identified exit to Upper Caves 8668 | -5/Factory | Entered Upper Caves 8979 | -5/Upper Caves | Attracted the attention of an 0b10 checkpoint 9805 | -5/Upper Caves | Discovered new exit (range 11) 9807 | -5/Upper Caves | Spotted B-75 Beast 9844 | -5/Upper Caves | Learned Factory stockpile data 9868 | -5/Upper Caves | Entered another Upper Caves area 10227 | -5/Upper Caves | Spotted B-75 Beast 10432 | -5/Upper Caves | Discovered new exit (range 6) 10438 | -5/Upper Caves | Attracted the attention of an 0b10 checkpoint 10489 | -5/Upper Caves | Entered Warlord 10552 | -5/Warlord | System corruption cleaned by Quarantine Array 10791 | -5/Warlord | Visited the Vortex Lab 10801 | -5/Warlord | Found Prototype Energy Gun 10803 | -5/Warlord | Found Prototype Energy Gun 10806 | -5/Warlord | Warlord's base attacked by MAIN.C 10965 | -5/Warlord | Spotted B-75 Beast 11156 | -5/Warlord | Warlord forces counterattacked 11176 | -5/Warlord | Spotted B-75 Beast 11230 | -5/Warlord | Spotted Executioner 11232 | -5/Warlord | P-70 Sage assimilated allied 7B-RRS(g) 11324 | -5/Warlord | Spotted Executioner 11331 | -5/Warlord | Discovered new exit (range 15) 11347 | -5/Warlord | Entered Proximity Caves 11349 | -4/Proximity Caves | Spotter reported a threat 11350 | -4/Proximity Caves | Spotter reported a threat 11403 | -4/Proximity Caves | Spotter reported a threat 11492 | -4/Proximity Caves | Spotter reported a threat 11545 | -4/Proximity Caves | Spotter reported a threat 11691 | -4/Proximity Caves | Spotted B-86 Titan 11878 | -4/Proximity Caves | Identified exit to Factory 11935 | -4/Proximity Caves | Entered Factory 11935 | -4/Factory | Evolved 2 slots: Utility x2 11936 | -4/Factory | Identified exit to Upper Caves 12185 | -4/Factory | Search patrols dispatched 12374 | -4/Factory | Discovered new exit (range 8) 12388 | -4/Factory | Entered Research 12388 | -3/Research | Evolved 2 slots: Utility x1, Weapon x1 12389 | -3/Research | Identified exit to Armory 12779 | -3/Research | Spotted B-86 Titan 12856 | -3/Research | Identified Vortex Shotgun (x2) 12860 | -3/Research | Identified Molecular Deconstructor 13536 | -3/Research | Lost 17 parts (1p4n6u6w) 13665 | -3/Research | Lost 6 parts (2n1u3w) 13666 | -3/Research | First assault squad dispatched 13738 | -3/Research | System corruption reached 10% 13739 | -3/Research | Released all parts (8) 13740 | -3/Research | Core integrity fell below 50% 13759 | -3/Research | Core integrity fell below 20% 13769 | -3/Research | Lost 8 parts (1p4n1u2w) 13787 | -3/Research | Destroyed by Y-72 Warden with Railgun Last Messages --------------- 13739_ Released Lrg. Storage Unit. 13739_ Released Adv. Energy Well. 13739_ Released Mass Driver. 13739_ Released Hvy. Machine Gun. 13739_ Released Wheel. 13739_ W-44 Eye sends out distress signal. 13743_ System corrupted: Matter fused (-5). 13751_ E-15 Imp destroyed. 13752_ Acquired Propulsion Shielding. 13752_ Critical hit (Burn: +37). 13753_ P-80 Master resets L-61 Swordsman, system corruption cleaned. 13754_ Triggered Shock Trap. 13754_ The floor emits a surge of raw power. 13754_ System corrupted (+2). 13771_ Acquired Adv. Medium Treads. 13776_ Dark Matter Chamber disabled. 13779_ System corrupted: Matter fused (-8). 13780_ ALERT: Cargo convoy en route, clear transfer corridor. 13782_ P-80 Master resets L-61 Swordsman, system corruption cleaned. 13783_ Propulsion Shielding destroyed. Map ----- +----------------------------------------------------+ | ?????????????????????????????????????????????????? | | ?????????????????????????????????????????????????? | | ?????????????????????????????????????????????????? | | ?????????????????????????????????????????????????? | | ?????????????????????????????????????????????????? | | ??????????????????????##??#####??????????????????? | | ??????????????????????"""" #?????????????????? | | ???????????????????? """"" #?????????????????? | | ???????????????????? "" F" ??????????????????? | | ??????????????????? #?????????????????? | | ??????????????????# #?????????????????? | | ??????????????????# #?????????????????? | | ??????????????????# #?????????????????? | | ??????????????????# """ """ #?????????????????? | | ??????????????????# """ """ #?????????????????? | | ??????????????????# """ """ #?????????????????? | | ??????????????????# =/ #?????????????????? | | ??????????????????# =% #?????????????????? | | ?????????????############+######?????????????????? | | ?????????????# # +?????????????????????? | | ?????????????# #^ #?????????????????????? | | ?????????????# # # ?????????????? | | ?????????????# + + ""???????????????? | | ?????????????# # # ""???????????????? | | ?????????????# # #?????????????????????? | | ?????????????# """ # @ #?????????????????????? | | ?????????????# "" # #?????????????????????? | | ?????????????# """ /Y #?????????????????????? | | ?????????????# """ g# #?????????????????????? | | ?????????????# """ # u #?????????????????????? | | ?????????????# """ # t#?????????????????????? | | ?????????????# "" # u ##########????????????? | | ?????????????# # R# #????????????? | | ?????????????# # u #! #????????????? | | ?????????????# # %#![ #????????????? | | ?????????????# # #*!= #????????????? | | ?????????????# # u %+!] #????????????? | | ?????????????########## R#% #????????????? | | ??????????????????????# u # #????????????? | | ??????????????????????# # ! #????????????? | | ??????????????????????# # #????????????? | | ??????????????????????# " ##########????????????? | | ??????????????????????#"%" #?????????????????????? | | ?????????????#######??# " #?????????????????????? | | ?????????????# ?# #?????????????????????? | | ?????????????# ?# #?????????????????????? | | ????????# # = # #?????????????????????? | | ????????# + # #?????????????????????? | | ?????????????# + #?????????????????????? | | ?????????????# # #?????????????????????? | +----------------------------------------------------+ Best States ------------- Heat Dissipation 84 Energy Generation 53 Energy Capacity 685 Matter Stores 300 Matter Capacity 300 Sight Range 22 Terrain Scan Range 16 Terrain Scan Density 210 Power Amplification 20 Corruption Block 8 Armor Coverage 450 Resistance: EM 25 Propulsion Shielding 33 Evasion (%) 59 Targeting Accuracy 8 Recoil Reduction 1 Matter Filtering 30 Kinecelleration 40 Offensive Hacking 16 Item Schematics ----------------- Arm. Leg | -7/Factory | Hacked Hcp. Storage Unit | -7/Factory | Hacked Robot Schematics ------------------ None Fabricated ------------ X-67 Chaingunner | x2 | -6/Factory | Preloaded Alien Tech Used ----------------- None Achievements -------------- None Challenges ------------ None Game ------ Seed LauncherHardenedShield Manual? 0 Play Time 01:42:14 Cumulative 326.3 hours Start 2023.03.30 @ 19:00:14 End 2023.03.31 @ 19:23:41 Sessions 3 Manual Loads 0 Difficulty Rogue Special Mode None Game No. 222 Rogue 222 Adventurer 0 Explorer 0 Win Type - Total 20 Types 17/0/2/1/0/0/0/0/0 Lore% 70 Gallery% 84 Achievement% 66 Wizard Run 0 Options --------- ASCII 0 Keyboard 1 Movement Numpad Keybinds 0 Fullscreen 2 Font 18/SmallcapsGlow Map View 76x50 Tactical HUD 1 Map Filters NONE Filters NONE Steam 1 RUN: e1e969b7-56da-4eff-b7cc-33761494ad6e